fUSD/lending_fUSD_20260109
["ID","MTS","AMOUNT","RATE_DAILY","PERIOD"]
[401092721,1767919840735,-500.0,0.00016438,2]
[401092723,1767919840744,-500.0,0.00016438,2]
[401092725,1767919840753,-500.0,0.00016438,2]
[401092727,1767919840763,-500.0,0.00016438,2]
[401092729,1767919840775,-500.0,0.00016438,2]
[401092731,1767919840785,-500.0,0.00016438,2]
[401092734,1767919840795,-500.0,0.00016438,2]
[401092736,1767919840804,-500.0,0.00016438,2]
[401092737,1767919840813,-500.0,0.00016438,2]
[401092739,1767919840823,-500.0,0.00016438,2]
[401092778,1767919840832,-500.0,0.00016438,2]
[401092782,1767919841201,-500.0,0.00016438,2]
[401092784,1767919841211,-626.88722057,0.00016438,2]
[401092786,1767919841220,-500.0,0.00016438,2]
[401092788,1767919841230,-249.99999999,0.00016438,2]
[401092790,1767919841240,-500.0,0.00016438,2]
[401092792,1767919841249,-500.0,0.00016438,2]
[401092795,1767919841258,-500.0,0.00016438,2]
[401092796,1767919841268,-433.0,0.00016515,2]
[401092798,1767919841277,-3839.8,0.00016601,2]
[401092800,1767919841286,-157.72323008,0.00016664,2]
[401092802,1767919841296,-449.06881699,0.00016683,2]
[401092804,1767919841305,-784.3,0.00016712,2]
[401092806,1767919841315,-587.0,0.00016911,2]
[401092808,1767919841323,-784.3,0.00016986,2]
[401092810,1767919841332,-50623.16,0.00016986,2]
[401092812,1767919841342,-2351.0,0.00017052,2]
[401092814,1767919841351,-578.20924308,0.00017086,2]
[401092817,1767919841364,-151.0,0.00017086,2]
[401092819,1767919841374,-322.6107,0.00017086,2]
[401092820,1767919841384,-553.64373807,0.00017086,2]
[401092823,1767919841393,-620.0,0.00017086,2]
[401092824,1767919841403,-449.06881699,0.00017089,2]
[401092826,1767919841412,-500.0,0.00017159,2]
[401092828,1767919841422,-1000.0,0.000172,2]
[401092830,1767919841432,-784.3,0.0001726,2]
[401092833,1767919841441,-243.75604072,0.00017386,2]
[401092835,1767919841450,-325.00805429,0.00017386,2]
[401092837,1767919841460,-162.50402715,0.00017386,2]
[401092839,1767919841469,-3839.8,0.00017431,2]
[401092840,1767919841479,-3000.0,0.00017452,7]
[401092842,1767919841488,-1200.0,0.00017452,7]
[401092844,1767919841497,-900.0,0.00017452,7]
[401092846,1767919841507,-449.06881699,0.00017494,2]
[401092848,1767919841515,-2000.0,0.000175,2]
[401092850,1767919841524,-784.3,0.00017534,2]
[401092852,1767919841534,-5888.0,0.0001759,2]
[401092855,1767919841543,-205.31387654,0.00017593,2]
[401092857,1767919841553,-5888.0,0.000176,2]
[401092859,1767919841562,-3895.0,0.00017603,2]
[401092861,1767919841571,-151.0,0.00017634,2]
[401092863,1767919841580,-574.12855637,0.00017634,2]
[401092865,1767919841590,-1722.03318206,0.0001764,2]
[401092867,1767919841599,-1000.0,0.000177,2]
[401092868,1767919841608,-3895.0,0.00017722,2]
[401092871,1767919841618,-1246.95554892,0.00017729,2]
[401092873,1767919841627,-2672.17298913,0.00017729,2]
[401092875,1767919841636,-3990.02689146,0.00017729,2]
[401092877,1767919841646,-500.0,0.00017729,2]
[401092878,1767919841655,-500.0,0.00017729,2]
[401092881,1767919841664,-500.0,0.00017729,2]
[401092883,1767919841673,-500.0,0.00017729,2]
[401092884,1767919841683,-500.0,0.00017729,2]
[401092886,1767919841692,-500.0,0.00017729,2]
[401092888,1767919841708,-500.0,0.00017729,2]
[401092890,1767919841721,-500.0,0.00017729,2]
[401092892,1767919841730,-500.0,0.00017729,2]
[401092894,1767919841740,-502.25127096,0.00017729,2]
[401092897,1767919841749,-500.0,0.00017742,2]
[401092898,1767919841759,-500.0,0.00017742,2]
[401092901,1767919841774,-5888.0,0.0001775,2]
[401092903,1767919841783,-80005.69031789,0.000178,2]
[401092905,1767919841792,-1000.0,0.000178,2]
[401092907,1767919841802,-296.3268575,0.000178,2]
[401092908,1767919841812,-784.3,0.00017808,2]
[401092909,1767919841821,-736.0,0.0001782,2]
[401092910,1767919841831,-351.85,0.00017836,2]
[401092911,1767919841844,-1751.0,0.00017845,2]
[401092912,1767919841854,-157.72323008,0.00017854,2]
[401092913,1767919841864,-2000.0,0.00017856,2]
[401092914,1767919841873,-1124.30298912,0.00017863,2]
[401092915,1767919841882,-1751.0,0.00017898,2]
[401092916,1767919841892,-10000.0,0.000179,2]
[401092917,1767919841902,-7642.75239593,0.000179,3]
[401092918,1767919841911,-449.06881699,0.000179,2]
[401092919,1767919841920,-204.08963953,0.000179,2]
[401092920,1767919841930,-1099.57470493,0.000179,2]
[401092921,1767919841939,-500.0,0.000179,2]
[401092922,1767919841948,-500.0,0.000179,2]
[401092924,1767919841957,-500.0,0.000179,2]
[401092926,1767919841967,-500.0,0.000179,2]
[401092928,1767919841975,-500.0,0.000179,2]
[401092930,1767919841985,-500.0,0.000179,2]
[401092932,1767919841994,-500.0,0.000179,2]
[401092934,1767919842007,-500.0,0.000179,2]
[401092936,1767919842017,-500.0,0.000179,2]
[401092938,1767919842026,-500.0,0.000179,2]
[401092940,1767919842035,-500.0,0.000179,2]
[401092942,1767919842045,-500.0,0.000179,2]
[401092945,1767919842055,-500.0,0.000179,2]
[401092947,1767919842064,-500.0,0.000179,2]
[401092949,1767919842074,-500.0,0.000179,2]
[401092951,1767919842083,-500.0,0.000179,2]
[401092953,1767919842093,-500.0,0.000179,2]
[401092955,1767919842102,-500.0,0.000179,2]
[401092957,1767919842111,-500.0,0.000179,2]
[401092959,1767919842121,-500.0,0.000179,2]
[401092961,1767919842130,-11017.0,0.000179,2]
[401092963,1767919842139,-1817.372,0.0001791,2]
[401092965,1767919842149,-1000.0,0.0001791,2]
[401092967,1767919842159,-1000.0,0.0001791,2]
[401092969,1767919842168,-1000.0,0.0001791,2]
[401092971,1767919842178,-5800.0,0.00017941,2]
[401092973,1767919842187,-1124.30298912,0.00017945,2]
[401092975,1767919842196,-5800.0,0.00017949,2]
[401092977,1767919842207,-5800.0,0.00017958,2]
[401092979,1767919842216,-5800.0,0.00017966,2]
[401092981,1767919842225,-151.0,0.00017972,2]
[401092983,1767919842235,-151.0,0.00017972,2]
[401092985,1767919842244,-151.0,0.00017972,2]
[401092987,1767919842255,-152.0,0.00017972,2]
[401092988,1767919842264,-152.0,0.00017972,2]
[401092990,1767919842274,-151.0,0.00017972,2]
[401092992,1767919842284,-622.77774854,0.00017973,2]
[401092994,1767919842293,-500.0,0.00017973,2]
[401092996,1767919842303,-372.49405725,0.00017973,2]
[401092999,1767919842313,-500.0,0.00017973,2]
[401093001,1767919842322,-500.0,0.00017973,2]
[401093003,1767919842332,-500.0,0.00017973,2]
[401093005,1767919842341,-500.0,0.00017973,2]
[401093006,1767919842350,-500.0,0.00017973,2]
[401093009,1767919842361,-500.0,0.00017973,2]
[401093011,1767919842371,-500.0,0.00017973,2]
[401093013,1767919842381,-500.0,0.00017973,2]
[401093015,1767919842391,-507.55666009,0.00017973,2]
[401093017,1767919842400,-500.0,0.00017973,2]
[401093019,1767919842410,-504.86489793,0.00017973,2]
[401093021,1767919842420,-500.0,0.00017973,2]
[401093023,1767919842429,-500.0,0.00017973,2]
[401093025,1767919842439,-500.10308709,0.00017973,2]
[401093027,1767919842448,-160.63254357,0.00017973,2]
[401093029,1767919842458,-166.02338612,0.00017973,2]
[401093030,1767919842468,-308.13156598,0.00017973,2]
[401093032,1767919842477,-500.0,0.00017973,2]
[401093034,1767919842486,-500.0,0.00017973,2]
[401093035,1767919842496,-500.0,0.00017973,2]
[401093037,1767919842505,-178.99834803,0.00017973,2]
[401093039,1767919842514,-500.14950578,0.00017973,2]
[401093041,1767919842524,-375.36556908,0.00017973,2]
[401093043,1767919842533,-283.37917692,0.00017973,2]
[401093045,1767919842542,-500.2261679,0.00017973,2]
[401093047,1767919842551,-169.07465729,0.00017973,2]
[401093049,1767919842561,-500.0,0.00017973,2]
[401093052,1767919842570,-500.0,0.00017973,2]
[401093055,1767919842579,-500.0,0.00017973,2]
[401093057,1767919842589,-500.0,0.00017973,2]
[401093059,1767919842602,-165.2927509,0.00017973,2]
[401093061,1767919842612,-500.0,0.00017973,2]
[401093064,1767919842622,-150.0,0.00017973,2]
[401093066,1767919842632,-5800.0,0.00017975,2]
[401093068,1767919842642,-151.0,0.00017976,2]
[401093070,1767919842651,-151.0,0.00017976,2]
[401093072,1767919842661,-151.0,0.00017976,2]
[401093074,1767919842671,-151.0,0.00017976,2]
[401093076,1767919842680,-151.0,0.00017976,2]
[401093078,1767919842690,-151.0,0.00017976,2]
[401093079,1767919842699,-151.0,0.00017976,2]
[401093082,1767919842709,-151.0,0.00017976,2]
[401093083,1767919842718,-151.0,0.00017976,2]
[401093085,1767919842728,-151.0,0.00017976,2]
[401093087,1767919842737,-151.0,0.00017976,2]
[401093089,1767919842747,-151.0,0.00017976,2]
[401093091,1767919842757,-151.0,0.00017976,2]
[401093093,1767919842772,-151.0,0.00017976,2]
[401093096,1767919842781,-151.0,0.00017976,2]
[401093097,1767919842791,-151.0,0.00017976,2]
[401093100,1767919842801,-151.0,0.00017976,2]
[401093101,1767919842810,-151.0,0.00017976,2]
[401093103,1767919842819,-151.0,0.00017976,2]
[401093105,1767919842829,-151.0,0.00017976,2]
[401093107,1767919842840,-302.0,0.00017976,2]
[401093109,1767919842849,-151.0,0.00017976,2]
[401093111,1767919842858,-151.0,0.00017976,2]
[401093113,1767919842868,-253.06619944,0.00017976,2]
[401093115,1767919842877,-158.0,0.00017976,2]
[401093117,1767919842886,-151.0,0.00017976,2]
[401093119,1767919842895,-151.0,0.00017976,2]
[401093121,1767919842904,-152.0,0.00017976,2]
[401093123,1767919842913,-151.0,0.00017976,2]
[401093125,1767919842922,-152.0,0.00017976,2]
[401093127,1767919842931,-151.0,0.00017976,2]
[401093129,1767919842941,-152.0,0.00017976,2]
[401093131,1767919842950,-151.0,0.00017976,2]
[401093133,1767919842959,-152.0,0.00017976,2]
[401093135,1767919842968,-151.0,0.00017976,2]
[401093137,1767919842977,-152.0,0.00017976,2]
[401093139,1767919842990,-152.0,0.00017976,2]
[401093141,1767919843007,-151.0,0.00017976,2]
[401093143,1767919843017,-151.0,0.00017976,2]
[401093145,1767919843027,-151.0,0.00017976,2]
[401093147,1767919843036,-151.0,0.00017976,2]
[401093149,1767919843046,-151.0,0.00017976,2]
[401093151,1767919843055,-151.0,0.00017976,2]
[401093152,1767919843064,-151.0,0.00017976,2]
[401093155,1767919843073,-151.0,0.00017976,2]
[401093157,1767919843083,-151.0,0.00017976,2]
[401093159,1767919843092,-151.0,0.00017976,2]
[401093161,1767919843102,-151.0,0.00017976,2]
[401093162,1767919843111,-151.0,0.00017976,2]
[401093164,1767919843120,-151.0,0.00017976,2]
[401093166,1767919843130,-151.0,0.00017976,2]
[401093168,1767919843139,-219.35995196,0.00017982,2]
[401093170,1767919843149,-5800.0,0.00017983,2]
[401093172,1767919843158,-205.31387654,0.0001799,2]
[401093174,1767919843168,-205.31387654,0.0001799,2]
[401093176,1767919843177,-5800.0,0.00017992,2]
[401093178,1767919843187,-151.0,0.00017997,2]
[401093180,1767919843197,-275.90349057,0.00017999,2]
[401093182,1767919843206,-155.0,0.00017999,2]
[401093184,1767919843215,-300.0,0.00017999,2]
[401093186,1767919843224,-666.0,0.00017999,2]
[401093188,1767919843234,-500.0,0.00017999,2]
[401093190,1767919843247,-500.0,0.00017999,2]
[401093192,1767919843257,-500.0,0.00017999,2]
[401093194,1767919843266,-500.0,0.00017999,2]
[401093196,1767919843277,-500.0,0.00017999,2]
[401093199,1767919843287,-500.0,0.00017999,2]
[401093201,1767919843296,-500.0,0.00017999,2]
[401093202,1767919843306,-500.0,0.00017999,2]
[401093205,1767919843316,-500.0,0.00017999,2]
[401093207,1767919843326,-500.0,0.00017999,2]
[401093209,1767919843335,-500.0,0.00017999,2]
[401093211,1767919843345,-359.94812993,0.00017999,2]
[401093213,1767919843355,-500.0,0.00017999,2]
[401093215,1767919843364,-500.0,0.00017999,2]
[401093217,1767919843374,-500.0,0.00017999,2]
[401093219,1767919843387,-500.0,0.00017999,2]
[401093221,1767919843396,-500.0,0.00017999,2]
[401093223,1767919843406,-500.0,0.00017999,2]
[401093224,1767919843415,-579.28,0.00017999,2]
[401093226,1767919843425,-300.0,0.00017999,2]
[401093228,1767919843435,-300.0,0.00017999,2]
[401093229,1767919843444,-500.0,0.00017999,2]
[401093231,1767919843453,-500.0,0.00017999,2]
[401093233,1767919843464,-500.0,0.00017999,2]
[401093235,1767919843473,-500.0,0.00017999,2]
[401093236,1767919843482,-500.0,0.00017999,2]
[401093238,1767919843492,-300.0,0.00017999,2]
[401093240,1767919843501,-300.0,0.00017999,2]
[401093242,1767919843511,-300.0,0.00017999,2]
[401093244,1767919843520,-300.0,0.00017999,2]
[401093245,1767919843529,-666.0,0.00017999,2]
[401093247,1767919843539,-1751.0,0.00018,2]
[401093249,1767919843548,-150.0,0.00018,2]
[401093251,1767919843557,-150.0,0.00018,2]
[401093252,1767919843566,-2897691.7549935,0.00018,2]
[401093255,1767919843589,-2341.20062471,0.00018,2]
[401093258,1767919843609,-5225.753394,0.00018,2]
[401093260,1767919843621,-600.719909,0.00018,2]
[401093261,1767919843632,-1330.08239876,0.00018,2]
[401093264,1767919843649,-4669.82032168,0.00018,2]
[401093266,1767919843660,-252.636388,0.00018,2]
[401093283,1767919843867,-2353.88008,0.00018,2]
[401093286,1767919843882,-1426.9169098,0.00018,2]
[401093288,1767919843894,-710.92467494,0.00018,2]
[401093297,1767919844005,-1480.76278124,0.00018,2]
[401093300,1767919844020,-1632.89,0.00018,2]
[401093302,1767919844031,-1000.0,0.00018,2]
[401093457,1767919845735,-151.0,0.00015891,2]
[401093459,1767919845745,-151.0,0.00015891,2]
[401093461,1767919845754,-82762.71586453,0.00018,2]
[401093463,1767919845770,-629.2,0.00018,2]
[401094084,1767919999091,415.19778936,0.000226,120]
[401094085,1767920002212,553.59705248,0.000226,120]
[401094086,1767920003519,593.13969909,0.000226,120]
[401094087,1767920032856,219.38043665,0.000226,120]
[401094088,1767920035498,292.50724886,0.000226,120]
[401094089,1767920037121,219.38043665,0.000226,120]
[401094146,1767921032791,-435.9,0.00013574,2]
[401094147,1767921032802,-895.1046154,0.00013807,2]
[401094148,1767921032839,-21.8563846,0.00013807,2]
[401094149,1767921032848,-540.90099958,0.00013807,2]
[401094150,1767921032859,-269.84867698,0.00013807,2]
[401094151,1767921033147,-273.84430536,0.00013807,2]
[401094152,1767921033159,-925.0,0.00013807,2]
[401094153,1767921033176,-490.40601808,0.00013807,2]
[401094154,1767921033186,-167.212,0.00013807,2]
[401094155,1767921033198,-2500.0,0.0001388,2]
[401094156,1767921033208,-200.0,0.00013893,2]
[401094157,1767921033219,-197.55123834,0.00013981,2]
[401094158,1767921033230,-151.0,0.00013986,2]
[401094159,1767921033242,-300.0,0.00013987,2]
[401094160,1767921033252,-1200.0,0.00013988,2]
[401094161,1767921033261,-500.0,0.00013988,2]
[401094162,1767921033271,-164.1747766,0.00013988,2]
[401094163,1767921033281,-68.16064599,0.00013988,2]
[401094166,1767921037982,-107.26588641,0.00013988,2]
[401094167,1767921037991,-169.04222021,0.00013988,2]
[401094168,1767921038000,-216.86519704,0.00013988,2]
[401094169,1767921038038,-761.96480296,0.00013988,2]
[401094170,1767921038047,-1242.29042653,0.00013989,2]
[401094171,1767921038059,-3327.18680771,0.00013989,2]
[401094172,1767921038069,-23100.69715127,0.00013989,2]
[401094173,1767921038079,-6955.0000005,0.00013989,2]
[401094174,1767921038150,-860.85068214,0.00013989,2]
[401094175,1767921038210,-583.72879,0.00013989,2]
[401094243,1767921040000,-968499.72337609,0.00013989,2]
[401094244,1767921040011,-151.0,0.00014081,2]
[401094245,1767921040021,-151.0,0.00014081,2]
[401094246,1767921040032,-150.0,0.00014087,2]
[401094247,1767921040043,-500.0,0.00014088,2]
[401094248,1767921040054,-500.0,0.00014088,2]
[401094249,1767921040064,-506.74935627,0.00014088,2]
[401094250,1767921040073,-500.0,0.00014088,2]
[401094251,1767921040083,-500.0,0.00014088,2]
[401094252,1767921040093,-500.0,0.00014088,2]
[401094253,1767921040103,-500.0,0.00014088,2]
[401094254,1767921040114,-330.37464563,0.00014088,2]
[401094255,1767921040124,-500.0,0.00014088,2]
[401094256,1767921040134,-500.0,0.00014088,2]
[401094257,1767921040144,-500.0,0.00014088,2]
[401094258,1767921040154,-500.0,0.00014088,2]
[401094259,1767921040164,-1000.0,0.00014089,2]
[401094260,1767921040176,-136671.01,0.00014112,2]
[401094261,1767921040187,-500.0,0.00014188,2]
[401094262,1767921040198,-500.0,0.00014188,2]
[401094263,1767921040207,-500.0,0.00014188,2]
[401094264,1767921040216,-500.0,0.00014188,2]
[401094265,1767921040226,-500.0,0.00014288,2]
[401094266,1767921040235,-500.0,0.00014288,2]
[401094267,1767921040244,-500.0,0.00014288,2]
[401094268,1767921040253,-363.73176274,0.00014288,2]
[401094269,1767921040264,-500.0,0.00014288,2]
[401094270,1767921040283,-500.0,0.00014288,2]
[401094271,1767921040294,-500.0,0.00014288,2]
[401094272,1767921040304,-500.0,0.00014288,2]
[401094273,1767921040313,-500.0,0.00014288,2]
[401094274,1767921040322,-500.0,0.00014288,2]
[401094275,1767921040331,-502.25127096,0.00014288,2]
[401094276,1767921040341,-435.9,0.00014328,2]
[401094277,1767921040351,-1500.0,0.00014385,2]
[401094278,1767921040360,-4569.47723419,0.00014424,2]
[401094279,1767921040370,-501.25165524,0.00014763,2]
[401094280,1767921040379,-500.0,0.00014763,2]
[401094281,1767921040388,-500.0,0.00014763,2]
[401094282,1767921040398,-500.0,0.00014763,2]
[401094283,1767921040407,-500.0,0.00014763,2]
[401094284,1767921040416,-500.0,0.00014763,2]
[401094285,1767921040426,-500.0,0.00014763,2]
[401094286,1767921040435,-500.0,0.00014763,2]
[401094287,1767921040444,-501.06710829,0.00014763,2]
[401094288,1767921040454,-500.0,0.00014763,2]
[401094289,1767921040464,-501.17648911,0.00014763,2]
[401094290,1767921040473,-502.40698527,0.00014763,2]
[401094291,1767921040483,-502.24390153,0.00014763,2]
[401094292,1767921040492,-500.0,0.00014763,2]
[401094293,1767921040503,-7805.49709874,0.00014828,2]
[401094294,1767921040513,-4569.47723419,0.00014858,2]
[401094295,1767921040525,-716.75,0.00014988,2]
[401094296,1767921040534,-435.9,0.00015082,2]
[401094297,1767921040544,-205.31387654,0.00015178,2]
[401094298,1767921040554,-2500.0,0.00015188,2]
[401094299,1767921040563,-2500.0,0.00015188,2]
[401094300,1767921040573,-2500.0,0.00015188,2]
[401094301,1767921040583,-500.0,0.00015205,2]
[401094302,1767921040593,-255.0,0.00015214,2]
[401094303,1767921040603,-4569.47723419,0.00015293,2]
[401094304,1767921040612,-500.0,0.0001531,2]
[401094305,1767921040622,-508.40118338,0.0001531,2]
[401094306,1767921040633,-1000.0,0.0001531,2]
[401094307,1767921040643,-1000.0,0.0001531,2]
[401094308,1767921040653,-1000.0,0.0001531,2]
[401094309,1767921040662,-596.90998776,0.0001531,2]
[401094310,1767921040672,-702.51911864,0.0001531,2]
[401094311,1767921040681,-151.0,0.00015382,2]
[401094312,1767921040691,-151.0,0.00015382,2]
[401094313,1767921040700,-1680.0,0.00015387,2]
[401094314,1767921040710,-151.0,0.00015388,2]
[401094315,1767921040719,-151.0,0.00015388,2]
[401094316,1767921040729,-151.0,0.00015388,2]
[401094317,1767921040739,-151.0,0.00015388,2]
[401094318,1767921040748,-151.0,0.00015454,2]
[401094319,1767921040757,-151.0,0.00015454,2]
[401094320,1767921040766,-150.0,0.00015668,2]
[401094321,1767921040776,-886.96,0.00015712,2]
[401094322,1767921040786,-166.66,0.00015717,2]
[401094323,1767921040795,-4569.47723419,0.00015727,2]
[401094324,1767921040804,-435.9,0.00015837,2]
[401094325,1767921040813,-663.03940033,0.00015858,2]
[401094326,1767921040823,-1500.0,0.00015858,2]
[401094327,1767921040832,-197.55123833,0.00015891,2]
[401094328,1767921040841,-1000.0,0.00015998,2]
[401094329,1767921040851,-166.66,0.00016048,2]
[401094330,1767921040860,-3000.0,0.00016082,2]
[401094331,1767921040870,-1200.0,0.00016082,2]
[401094332,1767921040879,-900.0,0.00016082,2]
[401094333,1767921040889,-166.66,0.00016114,2]
[401094334,1767921040898,-4569.47723419,0.00016162,2]
[401094335,1767921040907,-166.66,0.00016379,2]
[401094336,1767921040916,-500.0,0.00016406,2]
[401094337,1767921040926,-433.0,0.00016425,2]
[401094338,1767921040936,-784.3,0.00016438,2]
[401094339,1767921040945,-23823.72,0.00016438,2]
[401094340,1767921040954,-164.72,0.0001644,2]
[401094341,1767921040963,-164.72,0.0001644,2]
[401094342,1767921040972,-1000.0,0.00016545,2]
[401094343,1767921040981,-999.0,0.00016562,3]
[401094344,1767921040991,-435.9,0.00016591,2]
[401094345,1767921041000,-4569.47723419,0.00016596,2]
[401094346,1767921041009,-912.51,0.00016619,2]
[401094347,1767921041018,-166.66,0.00016646,2]
[401094348,1767921041027,-157.72323008,0.00016664,2]
[401094349,1767921041035,-166.66,0.0001671,2]
[401094350,1767921041044,-784.3,0.00016712,2]
[401094351,1767921041053,-158.55,0.00016712,2]
[401094352,1767921041062,-163.92,0.000169,2]
[401094353,1767921041071,-2351.0,0.00016925,2]
[401094354,1767921041081,-784.3,0.00016986,2]
[401094355,1767921041090,-250.0,0.00017,2]
[401094356,1767921041100,-168.0,0.00017,2]
[401094357,1767921041108,-4569.47723419,0.00017031,2]
[401094358,1767921041137,-166.66,0.00017041,2]
[401094359,1767921041146,-322.6107,0.00017086,2]
[401094360,1767921041155,-300.0,0.00017086,2]
[401094361,1767921041164,-620.0,0.00017086,2]
[401094362,1767921041173,-553.64373807,0.00017086,2]
[401094363,1767921041182,-578.20924308,0.00017086,2]
[401094364,1767921041191,-151.0,0.00017086,2]
[401094365,1767921041204,-1000.0,0.00017165,2]
[401094366,1767921041213,-351.85,0.00017178,2]
[401094367,1767921041222,-166.66,0.00017178,2]
[401094368,1767921041231,-784.3,0.0001726,2]
[401094369,1767921041241,-435.9,0.00017345,2]
[401094370,1767921041250,-177.94190973,0.00017365,2]
[401094371,1767921041259,-237.25587963,0.00017365,2]
[401094372,1767921041268,-166.66,0.00017372,2]
[401094373,1767921041280,-1000.0,0.000174,2]
[401094374,1767921041289,-3404.0,0.00017401,2]
[401094375,1767921041299,-3000.0,0.00017452,7]
[401094376,1767921041309,-1200.0,0.00017452,7]
[401094377,1767921041318,-900.0,0.00017452,7]
[401094378,1767921041327,-4569.47723419,0.00017465,2]
[401094379,1767921041337,-784.3,0.00017534,2]
[401094380,1767921041346,-500.0,0.00017589,2]
[401094381,1767921041356,-1000.0,0.000176,2]
[401094382,1767921041365,-574.12855637,0.00017634,2]
[401094383,1767921041375,-151.0,0.00017634,2]
[401094384,1767921041385,-1722.03318206,0.0001764,2]
[401094385,1767921041395,-166.66,0.0001771,2]
[401094386,1767921041404,-7967.42,0.00017728,2]
[401094387,1767921041414,-299.99,0.00017728,4]
[401094388,1767921041424,-2672.17298913,0.00017746,2]
[401094389,1767921041433,-1246.95554892,0.00017746,2]
[401094390,1767921041443,-3990.02689146,0.00017746,2]
[401094391,1767921041452,-736.0,0.0001775,2]
[401094392,1767921041461,-1000.0,0.00017785,2]
[401094393,1767921041471,-500.0,0.00017799,2]
[401094394,1767921041479,-2000.0,0.000178,2]
[401094395,1767921041489,-1000.0,0.000178,2]
[401094396,1767921041498,-197.55123833,0.00017801,2]
[401094397,1767921041507,-784.3,0.00017808,2]
[401094398,1767921041517,-3404.0,0.0001784,2]
[401094399,1767921041526,-218.0,0.00017844,2]
[401094400,1767921041536,-157.72323008,0.00017854,2]
[401094401,1767921041545,-2000.0,0.00017856,2]
[401094402,1767921041554,-200.0,0.00017856,2]
[401094403,1767921041564,-500.0,0.00017899,2]
[401094404,1767921041573,-162.0,0.000179,2]
[401094405,1767921041583,-162.0,0.000179,2]
[401094406,1767921041594,-162.0,0.000179,2]
[401094407,1767921041604,-162.0,0.000179,3]
[401094408,1767921041614,-162.0,0.000179,3]
[401094409,1767921041623,-1817.372,0.000179,2]
[401094410,1767921041633,-1000.0,0.000179,2]
[401094411,1767921041645,-1000.0,0.000179,2]
[401094412,1767921041655,-1000.0,0.000179,2]
[401094413,1767921041665,-162.0,0.000179,4]
[401094414,1767921041675,-162.0,0.000179,4]
[401094415,1767921041685,-162.0,0.000179,3]
[401094416,1767921041694,-163.0,0.000179,5]
[401094417,1767921041703,-10000.0,0.000179,2]
[401094418,1767921041713,-163.0,0.000179,5]
[401094419,1767921041722,-7900.6256861,0.000179,3]
[401094420,1767921041732,-164.47728644,0.000179,2]
[401094421,1767921041741,-4569.47723419,0.000179,2]
[401094422,1767921041750,-1093.85090882,0.000179,2]
[401094423,1767921041759,-1099.57470493,0.000179,2]
[401094424,1767921041768,-11018.0,0.000179,2]
[401094425,1767921041778,-3404.0,0.00017901,2]
[401094426,1767921041787,-241.0,0.00017928,2]
[401094427,1767921041796,-152.0,0.00017972,2]
[401094428,1767921041805,-152.0,0.00017972,2]
[401094429,1767921041814,-152.0,0.00017972,2]
[401094430,1767921041823,-152.0,0.00017972,2]
[401094431,1767921041833,-152.0,0.00017972,2]
[401094432,1767921041843,-500.0,0.00017973,2]
[401094433,1767921041852,-500.0,0.00017973,2]
[401094434,1767921041861,-622.77774854,0.00017973,2]
[401094435,1767921041870,-178.99834803,0.00017973,2]
[401094436,1767921041879,-372.49405725,0.00017973,2]